fUSD/lending_fUSD_20250427
["ID","MTS","AMOUNT","RATE_DAILY","PERIOD"]
[359179058,1745777443709,-480.0,0.00019999,2]
[359179059,1745777443719,-501.91528444,0.00019999,2]
[359179060,1745777443728,-463.61,0.00019999,2]
[359179061,1745777443738,-500.0,0.00019999,2]
[359179062,1745777443748,-549.45,0.00019999,2]
[359179063,1745777443757,-594.58,0.00019999,2]
[359179064,1745777443767,-541.71,0.00019999,2]
[359179065,1745777443776,-500.0,0.00019999,2]
[359179066,1745777443786,-500.0,0.00019999,2]
[359179067,1745777443795,-500.0,0.00019999,2]
[359179068,1745777443805,-500.0,0.00019999,2]
[359179069,1745777443814,-500.0,0.00019999,2]
[359179070,1745777443824,-480.0,0.00019999,2]
[359179071,1745777443833,-494.96,0.00019999,2]
[359179072,1745777443843,-500.0,0.00019999,2]
[359179073,1745777443852,-500.0,0.00019999,2]
[359179074,1745777443862,-319.53541044,0.00019999,2]
[359179075,1745777443872,-480.0,0.00019999,2]
[359179076,1745777443882,-480.0,0.00019999,2]
[359179077,1745777443891,-480.0,0.00019999,2]
[359179078,1745777443901,-480.0,0.00019999,2]
[359179079,1745777443911,-480.0,0.00019999,2]
[359179080,1745777443920,-480.0,0.00019999,2]
[359179081,1745777443930,-480.0,0.00019999,2]
[359179082,1745777443940,-500.0,0.00019999,2]
[359179083,1745777443950,-505.21447126,0.00019999,2]
[359179084,1745777443959,-480.0,0.00019999,2]
[359179085,1745777443969,-480.0,0.00019999,2]
[359179086,1745777443979,-500.00000009,0.00019999,2]
[359179087,1745777443988,-500.0,0.00019999,2]
[359179088,1745777443998,-480.0,0.00019999,2]
[359179089,1745777444009,-480.0,0.00019999,2]
[359179090,1745777444019,-480.0,0.00019999,2]
[359179091,1745777444028,-504.65875414,0.00019999,2]
[359179092,1745777444038,-480.0,0.00019999,2]
[359179093,1745777444047,-182.07707505,0.00019999,2]
[359179094,1745777444057,-480.0,0.00019999,2]
[359179095,1745777444066,-480.0,0.00019999,2]
[359179096,1745777444076,-480.0,0.00019999,2]
[359179097,1745777444087,-480.0,0.00019999,2]
[359179098,1745777444096,-480.0,0.00019999,2]
[359179099,1745777444106,-258.64,0.00019999,2]
[359179100,1745777444116,-503.43999165,0.00019999,2]
[359179101,1745777444128,-500.0,0.00019999,2]
[359179102,1745777444147,-503.12690736,0.00019999,2]
[359179103,1745777444158,-500.0,0.00019999,2]
[359179104,1745777444168,-500.0,0.00019999,2]
[359179105,1745777444177,-500.0,0.00019999,2]
[359179106,1745777444187,-500.0,0.00019999,2]
[359179107,1745777444197,-500.0,0.00019999,2]
[359179108,1745777444207,-500.0,0.00019999,2]
[359179109,1745777444216,-500.0,0.00019999,2]
[359179110,1745777444226,-503.06443341,0.00019999,2]
[359179111,1745777444235,-500.0,0.00019999,2]
[359179112,1745777444246,-496.15403073,0.00019999,2]
[359179113,1745777444256,-500.0,0.00019999,2]
[359179114,1745777444266,-500.0,0.00019999,2]
[359179115,1745777444276,-500.0,0.00019999,2]
[359179116,1745777444285,-500.0,0.00019999,2]
[359179117,1745777444295,-500.0,0.00019999,2]
[359179118,1745777444304,-500.0,0.00019999,2]
[359179119,1745777444313,-500.0,0.00019999,2]
[359179120,1745777444323,-500.0,0.00019999,2]
[359179121,1745777444332,-511.46603883,0.00019999,2]
[359179122,1745777444341,-500.0,0.00019999,2]
[359179123,1745777444351,-500.0,0.00019999,2]
[359179124,1745777444361,-500.0,0.00019999,2]
[359179125,1745777444371,-501.88822566,0.00019999,2]
[359179126,1745777444380,-500.0,0.00019999,2]
[359179127,1745777444390,-500.0,0.00019999,2]
[359179128,1745777444399,-500.0,0.00019999,2]
[359179129,1745777444410,-504.91036764,0.00019999,2]
[359179130,1745777444420,-480.0,0.00019999,2]
[359179131,1745777444430,-480.0,0.00019999,2]
[359179132,1745777444439,-393.34,0.00019999,2]
[359179133,1745777444449,-500.0,0.00019999,2]
[359179134,1745777444459,-480.0,0.00019999,2]
[359179135,1745777444468,-497.98,0.00019999,2]
[359179136,1745777444478,-548.33,0.00019999,2]
[359179137,1745777444487,-500.0,0.00019999,2]
[359179138,1745777444497,-500.0,0.00019999,2]
[359179139,1745777444507,-240.23479479,0.00019999,2]
[359179140,1745777444516,-237.54009687,0.00019999,2]
[359179141,1745777444540,-264.863103,0.00019999,2]
[359179142,1745777444550,-24.28689893,0.00019999,2]
[359179143,1745777444566,-475.71310107,0.00019999,2]
[359179144,1745777444576,-480.0,0.00019999,2]
[359179145,1745777444586,-502.28789411,0.00019999,2]
[359179146,1745777444596,-247.55727802,0.00019999,2]
[359179147,1745777444608,-115.37272198,0.00019999,2]
[359179148,1745777444617,-508.20721796,0.00019999,2]
[359179149,1745777444627,-503.53660931,0.00019999,2]
[359179150,1745777444637,-191.26064605,0.00019999,2]
[359179151,1745777444647,-500.0,0.00019999,2]
[359179152,1745777444656,-480.0,0.00019999,2]
[359179153,1745777444666,-520.0,0.00019999,2]
[359179154,1745777444676,-500.85474157,0.00019999,2]
[359179155,1745777444685,-515.30712449,0.00019999,2]
[359179156,1745777444695,-210.75097332,0.00019999,2]
[359179157,1745777444705,-500.0,0.00019999,2]
[359179158,1745777444715,-480.0,0.00019999,2]
[359179159,1745777444726,-500.0,0.00019999,2]
[359179160,1745777444735,-520.0,0.00019999,2]
[359179161,1745777444746,-502.29534643,0.00019999,2]
[359179162,1745777444756,-512.49047613,0.00019999,2]
[359179163,1745777444766,-505.01897839,0.00019999,2]
[359179164,1745777444776,-480.0,0.00019999,2]
[359179165,1745777444786,-501.65421976,0.00019999,2]
[359179166,1745777444795,-520.0,0.00019999,2]
[359179167,1745777444805,-500.0,0.00019999,2]
[359179168,1745777444814,-500.0,0.00019999,2]
[359179169,1745777444823,-503.5770521,0.00019999,2]
[359179170,1745777444833,-480.0,0.00019999,2]
[359179171,1745777444843,-520.0,0.00019999,2]
[359179172,1745777444852,-503.17280392,0.00019999,2]
[359179173,1745777444862,-500.0,0.00019999,2]
[359179174,1745777444872,-500.0,0.00019999,2]
[359179175,1745777444881,-584.22107799,0.00019999,2]
[359179176,1745777444891,-480.0,0.00019999,2]
[359179177,1745777444901,-480.0,0.00019999,2]
[359179178,1745777444910,-500.62319456,0.00019999,2]
[359179179,1745777444920,-563.32,0.00019999,2]
[359179180,1745777444930,-513.29897808,0.00019999,2]
[359179181,1745777444939,-605.06057635,0.00019999,2]
[359179182,1745777444948,-480.0,0.00019999,2]
[359179183,1745777444958,-480.0,0.00019999,2]
[359179184,1745777444968,-480.0,0.00019999,2]
[359179185,1745777444978,-403.0,0.00019999,2]
[359179186,1745777444988,-502.30753538,0.00019999,2]
[359179187,1745777444998,-500.0,0.00019999,2]
[359179188,1745777445008,-480.0,0.00019999,2]
[359179189,1745777445017,-500.0,0.00019999,2]
[359179190,1745777445026,-520.0,0.00019999,2]
[359179191,1745777445036,-500.0,0.00019999,2]
[359179192,1745777445045,-500.0,0.00019999,2]
[359179193,1745777445056,-500.0,0.00019999,2]
[359179194,1745777445065,-500.0,0.00019999,2]
[359179195,1745777445076,-500.0,0.00019999,2]
[359179196,1745777445086,-500.0,0.00019999,2]
[359179197,1745777445096,-500.0,0.00019999,2]
[359179198,1745777445105,-511.39436567,0.00019999,2]
[359179199,1745777445115,-500.0,0.00019999,2]
[359179200,1745777445125,-500.0,0.00019999,2]
[359179201,1745777445135,-500.0,0.00019999,2]
[359179202,1745777445145,-286.47547736,0.00019999,2]
[359179203,1745777445155,-500.0,0.00019999,2]
[359179204,1745777445165,-502.23951308,0.00019999,2]
[359179205,1745777445175,-480.0,0.00019999,2]
[359179206,1745777445185,-520.0,0.00019999,2]
[359179207,1745777445195,-500.0,0.00019999,2]
[359179208,1745777445204,-500.0,0.00019999,2]
[359179209,1745777445259,-480.0,0.00019999,2]
[359179210,1745777445269,-520.0,0.00019999,2]
[359179211,1745777445278,-500.0,0.00019999,2]
[359179212,1745777445287,-500.0,0.00019999,2]
[359179213,1745777445296,-480.0,0.00019999,2]
[359179214,1745777445306,-594.53982067,0.00019999,2]
[359179215,1745777445317,-480.0,0.00019999,2]
[359179216,1745777445327,-525.47274715,0.00019999,2]
[359179217,1745777445336,-500.0,0.00019999,2]
[359179218,1745777445344,-75.93244259,0.00019999,2]
[359179219,1745777445363,-461.29448561,0.00019999,2]
[359179220,1745777445372,-503.16685574,0.00019999,2]
[359179221,1745777445382,-480.0,0.00019999,2]
[359179222,1745777445391,-520.0,0.00019999,2]
[359179223,1745777445400,-480.0,0.00019999,2]
[359179224,1745777445410,-456.36,0.00019999,2]
[359179225,1745777445420,-480.0,0.00019999,2]
[359179226,1745777445430,-500.0,0.00019999,2]
[359179227,1745777445440,-571.70271381,0.00019999,2]
[359179228,1745777445449,-480.0,0.00019999,2]
[359179229,1745777445458,-520.0,0.00019999,2]
[359179230,1745777445467,-500.0,0.00019999,2]
[359179231,1745777445477,-498.02399997,0.00019999,2]
[359179232,1745777445486,-480.0,0.00019999,2]
[359179233,1745777445495,-580.65389048,0.00019999,2]
[359179234,1745777445505,-500.0,0.00019999,2]
[359179235,1745777445514,-480.0,0.00019999,2]
[359179236,1745777445523,-533.69983144,0.00019999,2]
[359179237,1745777445532,-480.0,0.00019999,2]
[359179238,1745777445545,-480.0,0.00019999,2]
[359179239,1745777445555,-398.04,0.00019999,2]
[359179240,1745777445564,-563.66716909,0.00019999,2]
[359179241,1745777445573,-480.0,0.00019999,2]
[359179242,1745777445583,-550.1496867,0.00019999,2]
[359179243,1745777445593,-480.0,0.00019999,2]
[359179244,1745777445602,-201.10220785,0.00019999,2]
[359179245,1745777445616,-318.89779215,0.00019999,2]
[359179246,1745777445626,-480.0,0.00019999,2]
[359179247,1745777445636,-518.41414949,0.00019999,2]
[359179248,1745777445645,-520.0,0.00019999,2]
[359179249,1745777445655,-500.0,0.00019999,2]
[359179250,1745777445664,-480.0,0.00019999,2]
[359179251,1745777445673,-520.0,0.00019999,2]
[359179252,1745777445682,-500.0,0.00019999,2]
[359179253,1745777445692,-480.0,0.00019999,2]
[359179254,1745777445701,-500.0,0.00019999,2]
[359179255,1745777445712,-229.03912261,0.00019999,2]
[359179256,1745777445722,-500.0,0.00019999,2]
[359179257,1745777445733,-480.0,0.00019999,2]
[359179258,1745777445743,-525.59172692,0.00019999,2]
[359179259,1745777445754,-480.0,0.00019999,2]
[359179260,1745777445763,-480.0,0.00019999,2]
[359179261,1745777445773,-582.96,0.00019999,2]
[359179262,1745777445783,-500.0,0.00019999,2]
[359179263,1745777445793,-480.0,0.00019999,2]
[359179264,1745777445803,-480.0,0.00019999,2]
[359179265,1745777445812,-520.0,0.00019999,2]
[359179266,1745777445822,-520.0,0.00019999,2]
[359179267,1745777445832,-500.0,0.00019999,2]
[359179268,1745777445841,-500.0,0.00019999,2]
[359179269,1745777445851,-562.49340467,0.00019999,2]
[359179271,1745777445860,-480.0,0.00019999,2]
[359179272,1745777445870,-520.0,0.00019999,2]
[359179273,1745777445879,-480.0,0.00019999,2]
[359179274,1745777445888,-520.0,0.00019999,2]
[359179275,1745777445898,-500.0,0.00019999,2]
[359179276,1745777445907,-500.0,0.00019999,2]
[359179277,1745777445917,-624.95069444,0.00019999,2]
[359179278,1745777445927,-480.0,0.00019999,2]
[359179279,1745777445936,-343.80884306,0.00019999,2]
[359179280,1745777445945,-480.0,0.00019999,2]
[359179281,1745777445955,-520.0,0.00019999,2]
[359179282,1745777445964,-520.0,0.00019999,2]
[359179283,1745777445974,-480.0,0.00019999,2]
[359179284,1745777445983,-526.47242159,0.00019999,2]
[359179285,1745777445993,-480.0,0.00019999,2]
[359179286,1745777446004,-520.0,0.00019999,2]
[359179287,1745777446013,-480.0,0.00019999,2]
[359179288,1745777446023,-480.0,0.00019999,2]
[359179289,1745777446033,-480.0,0.00019999,2]
[359179290,1745777446043,-517.94112308,0.00019999,2]
[359179291,1745777446052,-480.0,0.00019999,2]
[359179292,1745777446062,-612.14917352,0.00019999,2]
[359179293,1745777446071,-503.75028271,0.00019999,2]
[359179294,1745777446082,-480.0,0.00019999,2]
[359179295,1745777446092,-480.0,0.00019999,2]
[359179296,1745777446102,-480.0,0.00019999,2]
[359179297,1745777446112,-520.0,0.00019999,2]
[359179298,1745777446121,-192.25,0.00019999,2]
[359179299,1745777446131,-500.0,0.00019999,2]
[359179300,1745777446141,-505.965826,0.00019999,2]
[359179301,1745777446150,-467.98507729,0.00019999,2]
[359179302,1745777446160,-504.14030364,0.00019999,2]
[359179303,1745777446170,-480.0,0.00019999,2]
[359179304,1745777446180,-520.0,0.00019999,2]
[359179305,1745777446189,-500.0,0.00019999,2]
[359179306,1745777446199,-508.14256438,0.00019999,2]
[359179307,1745777446208,-480.0,0.00019999,2]
[359179308,1745777446218,-520.0,0.00019999,2]
[359179309,1745777446227,-480.0,0.00019999,2]
[359179310,1745777446237,-480.0,0.00019999,2]
[359179311,1745777446246,-584.14626938,0.00019999,2]
[359179312,1745777446256,-520.0,0.00019999,2]
[359179313,1745777446266,-480.0,0.00019999,2]
[359179314,1745777446276,-540.63898331,0.00019999,2]
[359179316,1745777446285,-552.32,0.00019999,2]
[359179317,1745777446294,-480.0,0.00019999,2]
[359179318,1745777446303,-572.1244061,0.00019999,2]
[359179319,1745777446314,-480.0,0.00019999,2]
[359179320,1745777446325,-520.0,0.00019999,2]
[359179321,1745777446335,-480.0,0.00019999,2]
[359179322,1745777446344,-520.0,0.00019999,2]
[359179323,1745777446354,-480.0,0.00019999,2]
[359179324,1745777446363,-480.0,0.00019999,2]
[359179325,1745777446372,-520.0,0.00019999,2]
[359179326,1745777446382,-520.0,0.00019999,2]
[359179328,1745777446391,-590.13,0.00019999,2]
[359179330,1745777446400,-501.2116626,0.00019999,2]
[359179331,1745777446409,-500.0,0.00019999,2]
[359179333,1745777446419,-480.0,0.00019999,2]
[359179334,1745777446428,-549.21787923,0.00019999,2]
[359179335,1745777446437,-480.0,0.00019999,2]
[359179336,1745777446447,-480.0,0.00019999,2]
[359179337,1745777446456,-480.0,0.00019999,2]
[359179338,1745777446465,-480.0,0.00019999,2]
[359179339,1745777446475,-480.0,0.00019999,2]
[359179340,1745777446484,-480.0,0.00019999,2]
[359179341,1745777446493,-480.0,0.00019999,2]
[359179342,1745777446503,-464.34,0.00019999,2]
[359179343,1745777446512,-480.0,0.00019999,2]
[359179344,1745777446521,-480.0,0.00019999,2]
[359179345,1745777446530,-480.0,0.00019999,2]
[359179346,1745777446542,-520.0,0.00019999,2]
[359179347,1745777446551,-525.26569861,0.00019999,2]
[359179348,1745777446560,-375.66,0.00019999,2]
[359179349,1745777446569,-513.22,0.00019999,2]
[359179350,1745777446579,-500.0,0.00019999,2]
[359179351,1745777446588,-480.0,0.00019999,2]
[359179352,1745777446597,-520.0,0.00019999,2]
[359179354,1745777446606,-480.0,0.00019999,2]
[359179356,1745777446615,-526.07853538,0.00019999,2]
[359179358,1745777446624,-520.3939269,0.00019999,2]
[359179360,1745777446634,-480.0,0.00019999,2]
[359179362,1745777446643,-520.0,0.00019999,2]
[359179364,1745777446653,-480.0,0.00019999,2]
[359179366,1745777446662,-480.0,0.00019999,2]
[359179368,1745777446671,-236.26,0.00019999,2]
[359179370,1745777446680,-480.0,0.00019999,2]
[359179372,1745777446690,-520.0,0.00019999,2]
[359179374,1745777446699,-503.16164761,0.00019999,2]
[359179376,1745777446708,-500.0,0.00019999,2]
[359179378,1745777446718,-480.0,0.00019999,2]
[359179380,1745777446727,-520.0,0.00019999,2]
[359179382,1745777446736,-480.0,0.00019999,2]
[359179384,1745777446745,-480.0,0.00019999,2]
[359179386,1745777446755,-520.0,0.00019999,2]
[359179388,1745777446764,-172.37,0.00019999,2]
[359179390,1745777446773,-480.0,0.00019999,2]
[359179392,1745777446782,-480.0,0.00019999,2]
[359179394,1745777446792,-480.0,0.00019999,2]
[359179396,1745777446802,-480.0,0.00019999,2]
[359179398,1745777446811,-507.98692092,0.00019999,2]
[359179400,1745777446820,-427.36,0.00019999,2]
[359179402,1745777446828,-520.0,0.00019999,2]
[359179404,1745777446838,-480.0,0.00019999,2]
[359179406,1745777446847,-523.15565352,0.00019999,2]
[359179408,1745777446856,-504.69855135,0.00019999,2]
[359179410,1745777446866,-502.08314626,0.00019999,2]
[359179412,1745777446875,-480.0,0.00019999,2]
[359179414,1745777446884,-480.0,0.00019999,2]
[359179416,1745777446894,-360.52,0.00019999,2]
[359179418,1745777446903,-520.0,0.00019999,2]
[359179420,1745777446912,-480.0,0.00019999,2]
[359179422,1745777446921,-526.3712394,0.00019999,2]
[359179424,1745777446930,-444.04045586,0.00019999,2]
[359179426,1745777446939,-500.0,0.00019999,2]
[359179428,1745777446949,-500.0,0.00019999,2]
[359179430,1745777446958,-522.57994475,0.00019999,2]
[359179432,1745777446968,-480.0,0.00019999,2]
[359179434,1745777446978,-480.0,0.00019999,2]
[359179436,1745777446987,-480.0,0.00019999,2]
[359179438,1745777446996,-480.0,0.00019999,2]
[359179440,1745777447006,-520.0,0.00019999,2]
[359179442,1745777447015,-520.0,0.00019999,2]
[359179444,1745777447026,-480.0,0.00019999,2]
[359179446,1745777447035,-328.38,0.00019999,2]
[359179448,1745777447045,-500.0,0.00019999,2]
[359179450,1745777447055,-519.73044211,0.00019999,2]
[359179452,1745777447065,-516.01521436,0.00019999,2]
[359179454,1745777447074,-500.0,0.00019999,2]
[359179456,1745777447084,-500.0,0.00019999,2]
[359179458,1745777447093,-541.61413238,0.00019999,2]
[359179460,1745777447102,-1000.0,0.00019999,2]
[359179462,1745777447112,-1000.0,0.00019999,2]
[359179464,1745777447122,-500.0,0.00019999,2]
[359179466,1745777447133,-480.0,0.00019999,2]
[359179468,1745777447142,-480.0,0.00019999,2]
[359179470,1745777447152,-500.0,0.00019999,2]
[359179472,1745777447162,-520.0,0.00019999,2]
[359179474,1745777447171,-520.0,0.00019999,2]
[359179476,1745777447181,-500.0,0.00019999,2]
[359179478,1745777447190,-500.0,0.00019999,2]
[359179480,1745777447199,-500.0,0.00019999,2]
[359179482,1745777447209,-500.0,0.00019999,2]
[359179484,1745777447219,-500.0,0.00019999,2]
[359179486,1745777447228,-500.0,0.00019999,2]
[359179488,1745777447237,-571.56,0.00019999,2]
[359179490,1745777447247,-480.0,0.00019999,2]
[359179492,1745777447257,-500.0,0.00019999,2]
[359179494,1745777447267,-520.0,0.00019999,2]
[359179496,1745777447276,-500.0,0.00019999,2]
[359179498,1745777447285,-500.0,0.00019999,2]
[359179500,1745777447295,-500.0,0.00019999,2]
[359179502,1745777447306,-500.0,0.00019999,2]
[359179504,1745777447315,-500.0,0.00019999,2]
[359179506,1745777447325,-279.02,0.00019999,2]
[359179508,1745777447335,-480.0,0.00019999,2]
[359179510,1745777447344,-535.82167926,0.00019999,2]
[359179512,1745777447354,-399.53,0.00019999,2]
[359179513,1745777447364,-514.98653803,0.00019999,2]
[359179514,1745777447374,-500.0,0.00019999,2]
[359179515,1745777447383,-501.10033158,0.00019999,2]
[359179516,1745777447392,-500.0,0.00019999,2]
[359179517,1745777447402,-500.0,0.00019999,2]
[359179518,1745777447413,-500.0,0.00019999,2]
[359179519,1745777447422,-504.75109199,0.00019999,2]
[359179520,1745777447432,-500.0,0.00019999,2]
[359179521,1745777447442,-500.0,0.00019999,2]
[359179522,1745777447451,-500.0,0.00019999,2]
[359179523,1745777447461,-500.0,0.00019999,2]
[359179524,1745777447471,-500.66193522,0.00019999,2]
[359179525,1745777447480,-500.0,0.00019999,2]
[359179526,1745777447490,-500.0,0.00019999,2]
[359179527,1745777447499,-500.0,0.00019999,2]
[359179528,1745777447509,-500.0,0.00019999,2]
[359179530,1745777447519,-500.0,0.00019999,2]
[359179532,1745777447529,-480.0,0.00019999,2]
[359179534,1745777447539,-480.0,0.00019999,2]
[359179536,1745777447551,-480.0,0.00019999,2]
[359179538,1745777447561,-500.0,0.00019999,2]
[359179540,1745777447571,-480.0,0.00019999,2]
[359179542,1745777447581,-480.0,0.00019999,2]
[359179544,1745777447591,-500.0,0.00019999,2]
[359179546,1745777447601,-520.0,0.00019999,2]
[359179548,1745777447611,-190.46,0.00019999,2]
[359179550,1745777447621,-500.0,0.00019999,2]
[359179552,1745777447630,-370.44,0.00019999,2]
[359179554,1745777447641,-480.0,0.00019999,2]
[359179556,1745777447651,-520.0,0.00019999,2]
[359179558,1745777447660,-480.0,0.00019999,2]
[359179560,1745777447673,-480.0,0.00019999,2]
[359179562,1745777447683,-535.64369377,0.00019999,2]
[359179564,1745777447692,-584.00858434,0.00019999,2]
[359179566,1745777447702,-271.75798107,0.00019999,2]
[359179568,1745777447712,-500.0,0.00019999,2]
[359179570,1745777447722,-504.77302901,0.00019999,2]
[359179572,1745777447732,-536.16024595,0.00019999,2]
[359179574,1745777447742,-500.0,0.00019999,2]
[359179576,1745777447753,-480.0,0.00019999,2]
[359179578,1745777447762,-520.0,0.00019999,2]
[359179580,1745777447772,-480.0,0.00019999,2]
[359179582,1745777447782,-480.0,0.00019999,2]
[359179584,1745777447791,-520.0,0.00019999,2]
[359179586,1745777447801,-520.0,0.00019999,2]
[359179588,1745777447810,-480.0,0.00019999,2]
[359179590,1745777447820,-500.0,0.00019999,2]
[359179592,1745777447829,-520.0,0.00019999,2]
[359179594,1745777447838,-500.0,0.00019999,2]
[359179596,1745777447849,-480.0,0.00019999,2]
[359179598,1745777447858,-480.0,0.00019999,2]
[359179600,1745777447868,-480.0,0.00019999,2]
[359179602,1745777447878,-206.68,0.00019999,2]
[359179605,1745777447888,-554.25104095,0.00019999,2]
[359179607,1745777447898,-542.14184706,0.00019999,2]
[359179609,1745777447908,-480.0,0.00019999,2]
[359179611,1745777447922,-587.72536381,0.00019999,2]
[359179613,1745777447931,-526.42,0.00019999,2]
[359179615,1745777447941,-480.0,0.00019999,2]
[359179617,1745777447951,-500.0,0.00019999,2]
[359179619,1745777447961,-480.0,0.00019999,2]
[359179621,1745777447972,-520.0,0.00019999,2]
[359179623,1745777447983,-535.45328513,0.00019999,2]
[359179625,1745777447993,-480.0,0.00019999,2]
[359179627,1745777448003,-480.0,0.00019999,2]
[359179629,1745777448012,-480.0,0.00019999,2]
[359179631,1745777448022,-501.76553569,0.00019999,2]
[359179633,1745777448032,-395.62,0.00019999,2]
[359179635,1745777448043,-503.8512385,0.00019999,2]
[359179638,1745777448054,-580.42977134,0.00019999,2]
[359179640,1745777448066,-500.0,0.00019999,2]
[359179642,1745777448076,-563.31007485,0.00019999,2]
[359179644,1745777448087,-480.0,0.00019999,2]
[359179646,1745777448097,-505.13172165,0.00019999,2]
[359179648,1745777448107,-520.0,0.00019999,2]
[359179650,1745777448117,-480.0,0.00019999,2]
[359179652,1745777448128,-618.89629743,0.00019999,2]
[359179654,1745777448138,-480.0,0.00019999,2]
[359179656,1745777448148,-520.0,0.00019999,2]
[359179658,1745777448159,-503.97523642,0.00019999,2]
[359179660,1745777448171,-480.0,0.00019999,2]
[359179662,1745777448182,-520.0,0.00019999,2]
[359179664,1745777448192,-480.0,0.00019999,2]
[359179666,1745777448203,-480.0,0.00019999,2]
[359179668,1745777448213,-520.0,0.00019999,2]
[359179670,1745777448222,-480.0,0.00019999,2]
[359179672,1745777448233,-480.0,0.00019999,2]
[359179674,1745777448242,-593.44,0.00019999,2]
[359179676,1745777448253,-480.0,0.00019999,2]
[359179678,1745777448263,-520.0,0.00019999,2]
[359179680,1745777448273,-500.3724105,0.00019999,2]
[359179682,1745777448284,-480.0,0.00019999,2]
[359179684,1745777448296,-480.0,0.00019999,2]
[359179686,1745777448307,-480.0,0.00019999,2]
[359179688,1745777448318,-520.0,0.00019999,2]
[359179690,1745777448329,-276.29,0.00019999,2]
[359179692,1745777448339,-480.0,0.00019999,2]
[359179694,1745777448350,-480.0,0.00019999,2]
[359179696,1745777448362,-539.13612177,0.00019999,2]
[359179698,1745777448372,-280.4,0.00019999,2]
[359179700,1745777448384,-480.0,0.00019999,2]
[359179701,1745777448395,-480.0,0.00019999,2]
[359179702,1745777448406,-480.0,0.00019999,2]
[359179703,1745777448419,-520.0,0.00019999,2]
[359179704,1745777448430,-480.0,0.00019999,2]
[359179705,1745777448441,-343.1,0.00019999,2]
[359179706,1745777448451,-480.0,0.00019999,2]
[359179707,1745777448462,-516.0339917,0.00019999,2]
[359179708,1745777448473,-520.0,0.00019999,2]
[359179709,1745777448483,-520.0,0.00019999,2]
[359179710,1745777448494,-538.67668986,0.00019999,2]
[359179711,1745777448504,-500.92902582,0.00019999,2]
[359179712,1745777448514,-480.0,0.00019999,2]
[359179713,1745777448524,-520.0,0.00019999,2]
[359179714,1745777448534,-480.0,0.00019999,2]
[359179715,1745777448547,-528.55204128,0.00019999,2]
[359179716,1745777448557,-480.0,0.00019999,2]
[359179717,1745777448567,-310.0,0.00019999,2]
[359179718,1745777448577,-520.0,0.00019999,2]
[359179719,1745777448589,-480.0,0.00019999,2]
[359179720,1745777448599,-480.0,0.00019999,2]
[359179721,1745777448609,-483.46,0.00019999,2]
[359179722,1745777448619,-480.0,0.00019999,2]
[359179723,1745777448629,-520.0,0.00019999,2]
[359179724,1745777448640,-480.0,0.00019999,2]
[359179725,1745777448650,-480.0,0.00019999,2]
[359179726,1745777448659,-601.32,0.00019999,2]
[359179727,1745777448671,-480.0,0.00019999,2]
[359179728,1745777448681,-520.0,0.00019999,2]
[359179729,1745777448691,-543.58,0.00019999,2]